fUST/lending_fUST_20250225
["ID","MTS","AMOUNT","RATE_DAILY","PERIOD"]
[354430765,1740489044498,-500.0,0.00054794,120]
[354430766,1740489044510,-508.24275279,0.00054794,120]
[354430767,1740489044519,-500.0,0.00054794,120]
[354430768,1740489044529,-1056.13,0.00054794,120]
[354430769,1740489044539,-500.0,0.00054794,120]
[354430770,1740489044548,-500.0,0.00054794,120]
[354430771,1740489044558,-589.85,0.00054794,120]
[354430772,1740489044567,-500.0,0.00054794,120]
[354430773,1740489044577,-500.0,0.00054794,120]
[354430774,1740489044587,-143028.04,0.00054794,7]
[354430775,1740489044596,-502.33938947,0.00054794,120]
[354430776,1740489044606,-500.0,0.00054794,120]
[354430777,1740489044615,-522.1581037,0.00054794,120]
[354430778,1740489044625,-500.0,0.00054794,120]
[354430779,1740489044636,-500.0,0.00054794,120]
[354430780,1740489044646,-500.0,0.00054794,120]
[354430781,1740489044655,-500.0,0.00054794,120]
[354430782,1740489044666,-500.0,0.00054794,120]
[354430783,1740489044676,-500.0,0.00054794,120]
[354430784,1740489044686,-500.0,0.00054794,120]
[354430785,1740489044696,-646.27,0.00054794,120]
[354430786,1740489044705,-277.51613697,0.00054794,120]
[354430787,1740489044715,-500.0,0.00054794,120]
[354430788,1740489044725,-2799.86,0.00054794,120]
[354430789,1740489044735,-1169.97,0.00054794,120]
[354430790,1740489044744,-500.0,0.00054794,120]
[354430791,1740489044754,-1300.68,0.00054794,120]
[354430792,1740489044765,-233.70923565,0.00054794,120]
[354430793,1740489044774,-500.0,0.00054794,120]
[354430794,1740489044784,-503.12852159,0.00054794,120]
[354430795,1740489044794,-500.0,0.00054794,120]
[354430796,1740489044806,-500.0,0.00054794,120]
[354430797,1740489044817,-713.37,0.00054794,120]
[354430798,1740489044827,-500.0,0.00054794,120]
[354430799,1740489044836,-649.66,0.00054794,120]
[354430800,1740489044846,-500.0,0.00054794,120]
[354430801,1740489044856,-2775.07,0.00054794,3]
[354430802,1740489044865,-500.0,0.00054794,120]
[354430803,1740489044875,-518.14,0.00054794,120]
[354430804,1740489044889,-500.0,0.00054794,120]
[354430805,1740489044903,-3500.0,0.00054794,120]
[354430806,1740489044981,-500.0,0.00054794,120]
[354430807,1740489044991,-500.0,0.00054794,120]
[354430808,1740489045001,-500.0,0.00054794,120]
[354430809,1740489045011,-500.0,0.00054794,120]
[354430810,1740489045020,-500.0,0.00054794,120]
[354430811,1740489045030,-558.98190769,0.00054794,120]
[354430812,1740489045039,-500.0,0.00054794,120]
[354430813,1740489045048,-573.75,0.00054794,120]
[354430814,1740489045058,-866.0,0.00054794,120]
[354430815,1740489045067,-502.4190194,0.00054794,120]
[354430816,1740489045076,-500.0,0.00054794,120]
[354430817,1740489045086,-4187.97,0.00054794,120]
[354430818,1740489045095,-4401.26,0.00054794,120]
[354430819,1740489045104,-1024.35,0.00054794,120]
[354430820,1740489045113,-501.10617869,0.00054794,120]
[354430821,1740489045123,-731.38,0.00054794,120]
[354430822,1740489045132,-501.46317128,0.00054794,120]
[354430823,1740489045142,-500.82703881,0.00054794,120]
[354430824,1740489045152,-507.83364902,0.00054794,120]
[354430825,1740489045163,-951.45,0.00054794,120]
[354430826,1740489045173,-500.0,0.00054794,120]
[354430827,1740489045183,-500.0,0.00054794,120]
[354430828,1740489045194,-894.25,0.00054794,120]
[354430829,1740489045204,-23769.64,0.00054794,120]
[354430830,1740489045214,-500.0,0.00054794,120]
[354430831,1740489045224,-500.0,0.00054794,120]
[354430832,1740489045234,-500.0,0.00054794,120]
[354430833,1740489045244,-500.78392675,0.00054794,120]
[354430834,1740489045254,-501.42100454,0.00054794,120]
[354430835,1740489045267,-500.0,0.00054794,120]
[354430836,1740489045277,-1697.99,0.00054794,120]
[354430837,1740489045287,-500.0,0.00054794,120]
[354430838,1740489045297,-500.0,0.00054794,120]
[354430839,1740489045306,-500.0,0.00054794,120]
[354430840,1740489045316,-500.49095676,0.00054794,120]
[354430841,1740489045326,-500.0,0.00054794,120]
[354430842,1740489045337,-500.0,0.00054794,120]
[354430843,1740489045346,-500.0,0.00054794,120]
[354430844,1740489045356,-228.57641041,0.00054794,120]
[354430845,1740489045366,-501.50683753,0.00054794,120]
[354430846,1740489045376,-500.0,0.00054794,120]
[354430847,1740489045386,-501.66135137,0.00054794,120]
[354430848,1740489045395,-823.08,0.00054794,120]
[354430849,1740489045415,-500.0,0.00054794,120]
[354430850,1740489045434,-500.0,0.00054794,120]
[354430851,1740489045453,-15648.45,0.00054794,120]
[354430852,1740489045474,-500.0,0.00054794,120]
[354430853,1740489045496,-501.06205549,0.00054794,120]
[354430854,1740489045514,-500.0,0.00054794,120]
[354430855,1740489045533,-500.0,0.00054794,120]
[354430856,1740489045548,-500.0,0.00054794,120]
[354430857,1740489045565,-500.0,0.00054794,120]
[354430858,1740489045583,-682.99,0.00054794,120]
[354430859,1740489045604,-500.0,0.00054794,120]
[354430860,1740489045618,-500.0,0.00054794,21]
[354430861,1740489045636,-600.0,0.00054794,120]
[354430862,1740489045652,-618.2,0.00054794,120]
[354430864,1740489045668,-500.0,0.00054794,120]
[354430867,1740489045682,-500.0,0.00054794,120]
[354430870,1740489045697,-500.0,0.00054794,120]
[354430872,1740489045713,-953.56,0.00054794,120]
[354430875,1740489045729,-743.63,0.00054794,120]
[354430878,1740489045745,-953.56,0.00054794,120]
[354430881,1740489045761,-953.56,0.00054794,120]
[354430883,1740489045778,-618.13,0.00054794,120]
[354430886,1740489045794,-953.56,0.00054794,120]
[354430889,1740489045810,-953.56,0.00054794,120]
[354430891,1740489045826,-953.56,0.00054794,120]
[354430894,1740489045842,-953.56,0.00054794,120]
[354430897,1740489045857,-953.56,0.00054794,120]
[354430899,1740489045873,-953.56,0.00054794,120]
[354430900,1740489045889,-953.56,0.00054794,120]
[354430902,1740489045905,-953.56,0.00054794,120]
[354430903,1740489045924,-953.56,0.00054794,120]
[354430904,1740489045941,-953.56,0.00054794,120]
[354430907,1740489045957,-953.56,0.00054794,120]
[354430910,1740489045973,-953.56,0.00054794,120]
[354430911,1740489045992,-635.76,0.00054794,120]
[354430912,1740489046008,-953.56,0.00054794,120]
[354430914,1740489046026,-953.56,0.00054794,120]
[354430916,1740489046042,-953.56,0.00054794,120]
[354430919,1740489046057,-953.56,0.00054794,120]
[354430921,1740489046073,-953.56,0.00054794,120]
[354430924,1740489046089,-953.56,0.00054794,120]
[354430927,1740489046104,-953.56,0.00054794,120]
[354430941,1740489046230,-953.56,0.00054794,120]
[354430943,1740489046241,-2297.14,0.00054794,120]
[354430945,1740489046251,-953.65,0.00054794,120]
[354430947,1740489046262,-513.85421012,0.00054794,120]
[354430949,1740489046272,-500.0,0.00054794,120]
[354430950,1740489046281,-500.0,0.00054794,120]
[354430952,1740489046291,-500.0,0.00054794,120]
[354430954,1740489046301,-500.0,0.00054794,120]
[354430956,1740489046311,-682.68,0.00054794,120]
[354430959,1740489046321,-500.0,0.00054794,120]
[354430961,1740489046331,-500.0,0.00054794,120]
[354430963,1740489046340,-658.67,0.00054794,120]
[354430964,1740489046350,-502.22216444,0.00054794,120]
[354430966,1740489046360,-500.0,0.00054794,120]
[354430968,1740489046369,-500.0,0.00054794,120]
[354430970,1740489046379,-500.0,0.00054794,120]
[354430971,1740489046389,-1178.0,0.0005489,120]
[354430972,1740489046399,-1178.0,0.0005489,120]
[354430973,1740489046409,-1178.0,0.0005489,120]
[354430974,1740489046418,-1178.0,0.0005489,120]
[354430975,1740489046428,-704.0,0.0005489,120]
[354430976,1740489046438,-151.0,0.000551,26]
[354430977,1740489046447,-151.0,0.000551,22]
[354430978,1740489046456,-151.0,0.000551,25]
[354430979,1740489046466,-1244.06730224,0.000551,30]
[354430980,1740489046476,-11391.6910368,0.00055169,5]
[354430981,1740489046486,-500.0,0.00055173,15]
[354430982,1740489046496,-545.9287457,0.00055173,15]
[354430983,1740489046506,-510.30142762,0.00055173,15]
[354430984,1740489046517,-435199.60682318,0.00055179,120]
[354430985,1740489046527,-151.0,0.000552,30]
[354430986,1740489046537,-151.0,0.000552,24]
[354430987,1740489046547,-151.0,0.000553,23]
[354430988,1740489046556,-151.0,0.000553,28]
[354430989,1740489046565,-100000.0,0.000553,120]
[354430990,1740489046575,-151.0,0.00055333,2]
[354430991,1740489046584,-500.0,0.00055342,120]
[354430992,1740489046594,-500.0,0.00055342,120]
[354430993,1740489046604,-518.85841486,0.00055342,120]
[354430994,1740489046614,-500.0,0.00055342,120]
[354430995,1740489046623,-533.15,0.00055342,120]
[354430996,1740489046632,-500.0,0.00055342,120]
[354430997,1740489046642,-500.0,0.00055342,120]
[354430998,1740489046652,-500.0,0.00055342,120]
[354430999,1740489046662,-205.51844783,0.00055342,120]
[354431000,1740489046671,-1000.0,0.00055342,120]
[354431001,1740489046680,-500.0,0.00055342,120]
[354431002,1740489046690,-500.92471358,0.00055342,120]
[354431003,1740489046699,-500.0,0.00055342,120]
[354431004,1740489046708,-500.0,0.00055342,120]
[354431005,1740489046718,-500.0,0.00055342,120]
[354431006,1740489046727,-500.0,0.00055342,120]
[354431007,1740489046737,-500.0,0.00055342,120]
[354431008,1740489046747,-500.0,0.00055342,120]
[354431009,1740489046757,-500.0,0.00055342,120]
[354431010,1740489046768,-499.87,0.00055342,120]
[354431011,1740489046777,-1000.0,0.00055342,20]
[354431012,1740489046787,-500.0,0.00055342,30]
[354431013,1740489046796,-500.0,0.00055342,120]
[354431014,1740489046806,-500.0,0.00055342,120]
[354431015,1740489046816,-500.0,0.00055342,120]
[354431016,1740489046825,-158.95510074,0.00055342,120]
[354431017,1740489046835,-500.0,0.00055342,120]
[354431018,1740489046844,-703.76,0.00055342,120]
[354431019,1740489046853,-570.91,0.00055342,120]
[354431020,1740489046863,-500.0,0.00055342,120]
[354431021,1740489046872,-594.49,0.00055342,120]
[354431022,1740489046881,-500.0,0.00055342,120]
[354431023,1740489046890,-511.85755195,0.00055342,120]
[354431024,1740489046903,-500.0,0.00055342,120]
[354431025,1740489046913,-500.0,0.00055342,120]
[354431026,1740489046925,-865.24,0.00055342,120]
[354431027,1740489046935,-500.0,0.00055342,120]
[354431028,1740489046946,-500.0,0.00055342,120]
[354431029,1740489046956,-500.0,0.00055342,120]
[354431030,1740489046966,-500.0,0.00055342,120]
[354431031,1740489046975,-847.06,0.00055342,120]
[354431032,1740489046985,-500.0,0.00055342,120]
[354431033,1740489046996,-637.96,0.00055342,120]
[354431034,1740489047005,-500.0,0.00055342,120]
[354431035,1740489047020,-500.0,0.00055342,120]
[354431036,1740489047030,-505.73,0.00055342,120]
[354431037,1740489047039,-500.0,0.00055342,120]
[354431038,1740489047048,-500.0,0.00055342,120]
[354431039,1740489047058,-500.0,0.00055342,120]
[354431040,1740489047067,-500.0,0.00055342,120]
[354431041,1740489047077,-600.0,0.00055342,120]
[354431042,1740489047087,-500.0,0.00055342,120]
[354431043,1740489047096,-501.55829666,0.00055342,120]
[354431044,1740489047106,-500.0,0.00055342,120]
[354431045,1740489047115,-500.0,0.00055342,120]
[354431046,1740489047124,-500.0,0.00055342,120]
[354431047,1740489047133,-500.0,0.00055342,120]
[354431048,1740489047143,-500.0,0.00055342,120]
[354431049,1740489047152,-500.0,0.00055342,120]
[354431050,1740489047162,-543.46,0.00055342,120]
[354431051,1740489047171,-500.0,0.00055342,120]
[354431052,1740489047181,-500.0,0.00055342,120]
[354431053,1740489047190,-500.0,0.00055342,120]
[354431054,1740489047200,-500.0,0.00055342,120]
[354431055,1740489047209,-797.4,0.00055342,120]
[354431056,1740489047219,-331.09786974,0.00055342,120]
[354431057,1740489047228,-500.0,0.00055342,120]
[354431058,1740489047238,-500.0,0.00055342,120]
[354431059,1740489047248,-500.0,0.00055342,120]
[354431060,1740489047257,-500.0,0.00055342,120]
[354431061,1740489047269,-500.0,0.00055342,120]
[354431062,1740489047279,-508.15,0.00055342,120]
[354431063,1740489047288,-430.25751844,0.00055342,120]
[354431064,1740489047298,-500.0,0.00055342,120]
[354431065,1740489047307,-500.0,0.00055342,120]
[354431066,1740489047317,-511.34,0.00055342,120]
[354431067,1740489047326,-500.0,0.00055342,120]
[354431068,1740489047336,-506.36809602,0.00055342,120]
[354431069,1740489047346,-507.33,0.00055342,120]
[354431070,1740489047355,-500.0,0.00055342,120]
[354431071,1740489047364,-500.0,0.00055342,120]
[354431072,1740489047374,-500.0,0.00055342,120]
[354431073,1740489047383,-500.0,0.00055342,120]
[354431074,1740489047392,-559.36,0.00055342,120]
[354431075,1740489047402,-500.0,0.00055342,120]
[354431076,1740489047411,-500.0,0.00055342,120]
[354431077,1740489047421,-512.81176448,0.00055342,30]
[354431078,1740489047431,-500.0,0.00055342,120]
[354431079,1740489047441,-500.0,0.00055342,120]
[354431080,1740489047450,-500.0,0.00055342,120]
[354431081,1740489047460,-556.9,0.00055342,120]
[354431082,1740489047542,-500.0,0.00055342,120]
[354431083,1740489047557,-500.0,0.00055342,120]
[354431084,1740489047567,-500.0,0.00055342,120]
[354431085,1740489047576,-500.0,0.00055342,120]
[354431086,1740489047586,-500.0,0.00055342,120]
[354431087,1740489047595,-545.59,0.00055342,120]
[354431088,1740489047605,-2376.56,0.00055342,120]
[354431089,1740489047614,-1041.62,0.00055342,120]
[354431090,1740489047623,-500.0,0.00055342,120]
[354431091,1740489047632,-500.0,0.00055342,120]
[354431092,1740489047641,-500.0,0.00055342,120]
[354431093,1740489047650,-500.0,0.00055342,120]
[354431094,1740489047659,-5962.44,0.00055342,120]
[354431095,1740489047668,-174.8062211,0.00055342,120]
[354431096,1740489047677,-500.0,0.00055342,120]
[354431097,1740489047688,-500.0,0.00055342,120]
[354431098,1740489047698,-1140.11,0.00055342,120]
[354431099,1740489047707,-863.23,0.00055342,120]
[354431100,1740489047716,-500.0,0.00055342,120]
[354431101,1740489047725,-500.0,0.00055342,120]
[354431102,1740489047734,-500.0,0.00055342,120]
[354431103,1740489047743,-500.0,0.00055342,120]
[354431104,1740489047753,-500.0,0.00055342,120]
[354431105,1740489047763,-500.0,0.00055342,120]
[354431106,1740489047773,-502.75964619,0.00055342,120]
[354431107,1740489047782,-500.0,0.00055342,120]
[354431108,1740489047791,-500.0,0.00055342,120]
[354431109,1740489047800,-500.0,0.00055342,120]
[354431110,1740489047809,-500.0,0.00055342,120]
[354431111,1740489047819,-500.0,0.00055342,120]
[354431112,1740489047828,-615.18,0.00055342,120]
[354431113,1740489047837,-163.17962273,0.00055342,120]
[354431114,1740489047847,-349.56416494,0.00055342,120]
[354431115,1740489047856,-500.0,0.00055342,120]
[354431116,1740489047865,-505.44862535,0.00055342,120]
[354431117,1740489047874,-500.0,0.00055342,120]
[354431118,1740489047884,-500.0,0.00055342,120]
[354431119,1740489047893,-500.0,0.00055342,120]
[354431120,1740489047903,-500.0,0.00055342,120]
[354431121,1740489047916,-250.0,0.00055342,120]
[354431122,1740489047925,-500.0,0.00055342,120]
[354431123,1740489047934,-508.87527991,0.00055342,120]
[354431124,1740489047944,-500.0,0.00055342,120]
[354431125,1740489047954,-500.0,0.00055342,120]
[354431126,1740489047963,-500.0,0.00055342,120]
[354431127,1740489047972,-510.43365665,0.00055342,120]
[354431128,1740489047981,-500.0,0.00055342,120]
[354431129,1740489047993,-500.0,0.00055342,120]
[354431130,1740489048003,-383.43284134,0.00055342,120]
[354431131,1740489048012,-520.47145173,0.00055342,120]
[354431132,1740489048022,-500.0,0.00055342,120]
[354431133,1740489048031,-500.0,0.00055342,120]
[354431134,1740489048041,-503.70530225,0.00055342,120]
[354431135,1740489048050,-500.0,0.00055342,120]
[354431136,1740489048059,-504.44616776,0.00055342,120]
[354431137,1740489048069,-500.0,0.00055342,120]
[354431138,1740489048078,-502.05442398,0.00055342,120]
[354431139,1740489048088,-500.0,0.00055342,120]
[354431140,1740489048097,-500.0,0.00055342,120]
[354431141,1740489048106,-500.0,0.00055342,120]
[354431142,1740489048116,-500.0,0.00055342,120]
[354431143,1740489048125,-540.94231732,0.00055342,120]
[354431144,1740489048134,-500.0,0.00055342,120]
[354431145,1740489048144,-846.24,0.00055342,120]
[354431146,1740489048153,-500.0,0.00055342,120]
[354431147,1740489048162,-24935.22,0.00055342,6]
[354431148,1740489048171,-500.0,0.00055342,120]
[354431149,1740489048181,-500.0,0.00055342,120]
[354431150,1740489048191,-2797.93,0.00055342,120]
[354431151,1740489048201,-500.0,0.00055342,120]
[354431152,1740489048211,-838.23,0.00055342,120]
[354431153,1740489048221,-682.63,0.00055342,120]
[354431154,1740489048231,-323.50185223,0.00055342,120]
[354431155,1740489048240,-725.46,0.00055342,120]
[354431156,1740489048250,-500.0,0.00055342,120]
[354431157,1740489048259,-500.0,0.00055342,120]
[354431158,1740489048271,-530.94527689,0.00055342,120]
[354431159,1740489048281,-244.35200843,0.00055342,120]
[354431160,1740489048291,-509.14603337,0.00055342,120]
[354431161,1740489048301,-500.0,0.00055342,120]
[354431162,1740489048311,-1292.06,0.00055342,120]
[354431163,1740489048321,-500.0,0.00055342,120]
[354431164,1740489048331,-1744.86,0.00055342,120]
[354431165,1740489048341,-500.0,0.00055342,120]
[354431166,1740489048350,-500.0,0.00055342,120]
[354431167,1740489048360,-500.0,0.00055342,120]
[354431168,1740489048370,-500.0,0.00055342,120]
[354431169,1740489048380,-246.075767,0.00055342,120]
[354431170,1740489048390,-1390.27,0.00055342,120]
[354431171,1740489048400,-500.0,0.00055342,120]
[354431172,1740489048411,-505.22451817,0.00055342,120]
[354431173,1740489048421,-500.0,0.00055342,120]
[354431174,1740489048432,-501.60672053,0.00055342,120]
[354431175,1740489048442,-501.38811267,0.00055342,120]
[354431176,1740489048452,-1532.85,0.00055342,120]
[354431177,1740489048462,-7137.29,0.00055342,120]
[354431178,1740489048472,-500.0,0.00055342,120]
[354431179,1740489048482,-10340.17,0.00055342,120]
[354431180,1740489048493,-346.93540459,0.00055342,120]
[354431181,1740489048503,-500.0,0.00055342,120]
[354431182,1740489048516,-500.0,0.00055342,120]
[354431183,1740489048527,-500.0,0.00055342,120]
[354431184,1740489048537,-500.0,0.00055342,120]
[354431185,1740489048548,-1014.25,0.00055342,120]
[354431186,1740489048559,-2000.0,0.00055342,120]
[354431187,1740489048569,-500.0,0.00055342,120]
[354431188,1740489048579,-500.0,0.00055342,120]
[354431189,1740489048589,-500.0,0.00055342,120]
[354431190,1740489048600,-1080.18,0.00055342,120]
[354431191,1740489048610,-500.0,0.00055342,120]
[354431192,1740489048621,-500.0,0.00055342,120]
[354431193,1740489048631,-500.0,0.00055342,120]
[354431194,1740489048641,-500.0,0.00055342,30]
[354431195,1740489048651,-664.91,0.00055342,120]
[354431196,1740489048662,-500.0,0.00055342,120]
[354431197,1740489048672,-500.0,0.00055342,120]
[354431198,1740489048682,-530.45,0.00055342,120]
[354431199,1740489048693,-577.63725623,0.00055342,120]
[354431200,1740489048783,-559.91103563,0.00055342,120]
[354431201,1740489048793,-500.0,0.00055342,120]
[354431202,1740489048804,-500.0,0.00055342,120]
[354431203,1740489048814,-500.0,0.00055342,120]
[354431204,1740489048824,-500.0,0.00055342,120]
[354431205,1740489048834,-500.0,0.00055342,120]
[354431206,1740489048844,-1056.13,0.00055342,120]
[354431207,1740489048854,-500.0,0.00055342,120]
[354431208,1740489048863,-500.0,0.00055342,120]
[354431209,1740489048873,-589.85,0.00055342,120]
[354431210,1740489048882,-500.0,0.00055342,120]
[354431211,1740489048892,-500.0,0.00055342,120]
[354431212,1740489048906,-143028.04,0.00055342,7]
[354431213,1740489048916,-500.0,0.00055342,120]
[354431214,1740489048926,-500.0,0.00055342,120]
[354431215,1740489048937,-500.0,0.00055342,120]
[354431216,1740489048947,-500.0,0.00055342,120]
[354431217,1740489048956,-500.0,0.00055342,120]
[354431218,1740489048966,-500.0,0.00055342,120]
[354431219,1740489048975,-500.0,0.00055342,120]
[354431220,1740489048985,-646.27,0.00055342,120]
[354431221,1740489048996,-500.0,0.00055342,120]
[354431222,1740489049006,-2799.86,0.00055342,120]
[354431223,1740489049018,-1169.97,0.00055342,120]
[354431224,1740489049028,-150.02069452,0.00055342,120]
[354431225,1740489049038,-1300.68,0.00055342,120]
[354431226,1740489049048,-500.0,0.00055342,120]
[354431227,1740489049058,-500.0,0.00055342,120]
[354431228,1740489049068,-713.37,0.00055342,120]
[354431229,1740489049078,-500.0,0.00055342,120]
[354431230,1740489049088,-500.0,0.00055342,120]
[354431231,1740489049098,-649.66,0.00055342,120]
[354431232,1740489049108,-2775.07,0.00055342,3]
[354431233,1740489049118,-503.13241147,0.00055342,120]
[354431234,1740489049128,-518.14,0.00055342,120]
[354431235,1740489049137,-500.0,0.00055342,120]
[354431236,1740489049147,-3500.0,0.00055342,120]
[354431237,1740489049156,-500.0,0.00055342,120]
[354431238,1740489049166,-500.0,0.00055342,120]
[354431239,1740489049175,-447.01370182,0.00055342,120]
[354431240,1740489049185,-573.75,0.00055342,120]
[354431241,1740489049195,-866.0,0.00055342,120]
[354431242,1740489049205,-4187.97,0.00055342,120]
[354431243,1740489049216,-4401.26,0.00055342,120]
[354431244,1740489049227,-1024.35,0.00055342,120]
[354431245,1740489049237,-731.38,0.00055342,120]
[354431246,1740489049247,-951.45,0.00055342,120]
[354431247,1740489049258,-504.77649228,0.00055342,120]
[354431248,1740489049271,-894.25,0.00055342,120]
[354431249,1740489049281,-23769.64,0.00055342,120]
[354431250,1740489049291,-500.0,0.00055342,120]
[354431251,1740489049301,-500.0,0.00055342,120]
[354431252,1740489049312,-505.91148077,0.00055342,120]
[354431253,1740489049321,-1697.99,0.00055342,120]
[354431254,1740489049331,-507.09864654,0.00055342,120]
[354431255,1740489049342,-500.0,0.00055342,120]
[354431256,1740489049352,-500.0,0.00055342,120]
[354431257,1740489049361,-823.08,0.00055342,120]
[354431258,1740489049372,-500.0,0.00055342,120]
[354431259,1740489049382,-15648.45,0.00055342,120]
[354431260,1740489049393,-500.0,0.00055342,120]
[354431261,1740489049403,-500.0,0.00055342,120]
[354431262,1740489049413,-500.0,0.00055342,120]
[354431263,1740489049423,-682.99,0.00055342,120]
[354431264,1740489049433,-500.0,0.00055342,120]
[354431265,1740489049443,-618.2,0.00055342,120]
[354431266,1740489049453,-500.0,0.00055342,120]
[354431267,1740489049463,-500.0,0.00055342,120]
[354431268,1740489049473,-743.63,0.00055342,120]
[354431269,1740489049483,-618.13,0.00055342,120]
[354431270,1740489049492,-635.76,0.00055342,120]
[354431271,1740489049503,-2297.14,0.00055342,120]
[354431272,1740489049515,-500.0,0.00055342,120]
[354431273,1740489049525,-500.0,0.00055342,120]
[354431274,1740489049536,-500.0,0.00055342,120]
[354431275,1740489049546,-682.68,0.00055342,120]
[354431276,1740489049556,-500.0,0.00055342,120]
[354431277,1740489049565,-658.67,0.00055342,120]
[354431278,1740489049575,-500.0,0.00055342,120]
[354431279,1740489049585,-500.0,0.00055342,120]
[354431280,1740489049594,-3070.06120391,0.00055348,13]
[354431281,1740489049604,-500.0,0.00055373,15]
[354431282,1740489049614,-500.0,0.00055373,15]
[354431283,1740489049624,-500.0,0.00055373,15]
[354431284,1740489049633,-500.0,0.00055373,15]
[354431285,1740489049643,-500.0,0.00055373,15]
[354431286,1740489049652,-500.0,0.00055373,15]
[354431287,1740489049661,-500.0,0.00055373,15]
[354431288,1740489049671,-500.0,0.00055373,15]
[354431289,1740489049680,-412.55174326,0.00055373,15]
[354431290,1740489049690,-500.0,0.00055373,15]
[354431291,1740489049700,-5555.0,0.0005555,120]
[354431292,1740489049711,-5555.0,0.0005555,120]
[354431293,1740489049721,-5555.0,0.0005555,120]
[354431294,1740489049731,-5555.0,0.0005555,120]
[354431295,1740489049741,-5555.0,0.0005555,120]
[354431296,1740489049750,-5555.0,0.0005555,120]
[354431297,1740489049760,-5555.0,0.0005555,120]
[354431298,1740489049771,-5555.0,0.0005555,120]
[354431299,1740489049781,-5555.0,0.0005555,120]
[354431300,1740489049791,-5555.0,0.0005555,120]
[354431301,1740489049801,-5555.0,0.0005555,120]
[354431302,1740489049811,-5555.0,0.0005555,120]
[354431303,1740489049820,-4444.000001,0.0005555,120]
[354431304,1740489049830,-5555.0,0.0005555,120]
[354431305,1740489049839,-5555.0,0.0005555,120]
[354431306,1740489049849,-2311.05714369,0.0005555,120]
[354431307,1740489049859,-5717.17819098,0.000556,2]
[354431308,1740489049940,-500.0,0.000556,30]
[354431309,1740489049951,-500.0,0.00055673,15]
[354431310,1740489049960,-500.53966456,0.00055673,15]
[354431311,1740489049970,-500.0,0.00055673,14]
[354431312,1740489049979,-500.0,0.00055673,15]
[354431313,1740489049990,-500.0,0.00055673,15]
[354431314,1740489050000,-110194.76726937,0.0005568,120]
[354431315,1740489050982,-2773.80000008,0.00029,10]
[354431316,1740489265846,10000.0,0.00066653,2]
[354431317,1740489322310,3000.0,0.00066632,120]
[354431318,1740489353224,3000.0,0.00066632,120]
[354431319,1740489420423,10000.0,0.00066632,16]
[354431320,1740489427634,10000.0,0.00066632,15]
[354431321,1740489448382,10000.0,0.00066632,17]
[354431322,1740489455853,10000.0,0.00066632,18]
[354431323,1740489480873,10000.0,0.00066632,19]
[354431324,1740489485493,10000.0,0.00066632,20]
[354431325,1740489489482,10000.0,0.00066632,21]
[354431326,1740489496521,10000.0,0.00066632,22]
[354431327,1740489500451,10000.0,0.00066632,23]
[354431328,1740489504001,10000.0,0.00066632,24]